fUST/lending_fUST_20250821
["ID","MTS","AMOUNT","RATE_DAILY","PERIOD"]
[380424436,1755755454385,-480.0,0.00022465,3]
[380424437,1755755454394,-5090.19,0.00022465,3]
[380424438,1755755454403,-480.0,0.00022465,3]
[380424439,1755755454412,-480.0,0.00022465,3]
[380424440,1755755454421,-480.0,0.00022465,3]
[380424441,1755755454430,-480.0,0.00022465,3]
[380424442,1755755454439,-480.0,0.00022465,3]
[380424443,1755755454448,-1636.43,0.00022465,3]
[380424444,1755755454457,-1651.35,0.00022465,3]
[380424445,1755755454467,-1600.71,0.00022465,3]
[380424446,1755755454476,-151.0,0.00022465,7]
[380424447,1755755454486,-858.34,0.00022465,3]
[380424448,1755755454495,-160.005832,0.00022465,7]
[380424449,1755755454504,-666.5,0.00022465,3]
[380424450,1755755454514,-151.0,0.00022465,7]
[380424451,1755755454524,-480.0,0.00022465,3]
[380424452,1755755454533,-5436.13,0.00022465,3]
[380424453,1755755454542,-987.13,0.00022465,3]
[380424454,1755755454551,-480.0,0.00022465,3]
[380424455,1755755454560,-480.0,0.00022465,3]
[380424456,1755755454576,-480.0,0.00022465,3]
[380424457,1755755454585,-480.0,0.00022465,3]
[380424458,1755755454595,-480.0,0.00022465,3]
[380424459,1755755454604,-480.0,0.00022465,3]
[380424460,1755755454613,-556.17,0.00022465,3]
[380424461,1755755454622,-1298.25,0.00022465,3]
[380424462,1755755454631,-588.52765639,0.00022465,3]
[380424463,1755755454640,-480.0,0.00022465,3]
[380424464,1755755454650,-480.0,0.00022465,3]
[380424465,1755755454659,-4081.23,0.00022465,3]
[380424466,1755755454668,-661.03,0.00022465,3]
[380424467,1755755454679,-4649.69,0.00022465,3]
[380424468,1755755454696,-764.39,0.00022465,3]
[380424469,1755755454705,-646.25,0.00022465,3]
[380424470,1755755454714,-1607.72,0.00022465,3]
[380424471,1755755454723,-480.0,0.00022465,3]
[380424472,1755755454733,-587.15,0.00022465,3]
[380424473,1755755454746,-1033.88,0.00022465,3]
[380424474,1755755454757,-480.0,0.00022465,3]
[380424475,1755755454766,-692.81,0.00022465,3]
[380424476,1755755454775,-1892.16,0.00022465,3]
[380424477,1755755454786,-571.49,0.00022465,3]
[380424478,1755755454795,-480.0,0.00022465,3]
[380424479,1755755454806,-704.68,0.00022465,3]
[380424480,1755755454816,-480.0,0.00022465,2]
[380424481,1755755454826,-580.06,0.00022465,3]
[380424482,1755755454835,-2026.45,0.00022465,3]
[380424483,1755755454845,-638.71,0.00022465,3]
[380424484,1755755454854,-1548.41,0.00022465,3]
[380424485,1755755454863,-540.21384101,0.00022465,3]
[380424486,1755755454873,-876.69,0.00022465,3]
[380424487,1755755454882,-156.33436,0.00022465,7]
[380424488,1755755454892,-913.08,0.00022465,3]
[380424489,1755755454902,-2836.41,0.00022465,3]
[380424490,1755755454911,-480.0,0.00022465,3]
[380424491,1755755454921,-480.18,0.00022465,3]
[380424492,1755755454930,-480.0,0.00022465,3]
[380424493,1755755454940,-423.46113962,0.00022465,3]
[380424494,1755755454949,-480.0,0.00022465,3]
[380424495,1755755454959,-1260.5,0.00022465,3]
[380424496,1755755454968,-480.0,0.00022465,3]
[380424497,1755755454978,-6867.1,0.00022465,3]
[380424498,1755755454987,-480.0,0.00022465,3]
[380424499,1755755454997,-480.0,0.00022465,3]
[380424500,1755755455007,-480.0,0.00022465,3]
[380424501,1755755455017,-151.0,0.00022465,7]
[380424502,1755755455027,-480.0,0.00022465,3]
[380424503,1755755455036,-2112.97,0.00022465,3]
[380424504,1755755455045,-897.34,0.00022465,3]
[380424505,1755755455055,-151.0,0.00022465,7]
[380424506,1755755455064,-480.0,0.00022465,3]
[380424507,1755755455074,-1849.27,0.00022465,3]
[380424508,1755755455083,-151.0,0.00022465,7]
[380424509,1755755455092,-480.0,0.00022465,3]
[380424510,1755755455101,-480.0,0.00022465,3]
[380424511,1755755455111,-967.56,0.00022465,3]
[380424512,1755755455120,-3113.67,0.00022465,3]
[380424513,1755755455130,-480.0,0.00022465,3]
[380424514,1755755455140,-480.0,0.00022465,3]
[380424515,1755755455149,-959.71,0.00022465,3]
[380424516,1755755455159,-480.0,0.00022465,3]
[380424517,1755755455168,-480.0,0.00022465,3]
[380424518,1755755455178,-521.76,0.00022465,3]
[380424519,1755755455187,-1373.53,0.00022465,3]
[380424520,1755755455196,-480.0,0.00022465,3]
[380424521,1755755455206,-747.07,0.00022465,3]
[380424522,1755755455216,-2085.04,0.00022465,3]
[380424523,1755755455226,-289.22622,0.00022465,3]
[380424524,1755755455235,-1394.07,0.00022465,3]
[380424525,1755755455245,-480.0,0.00022465,3]
[380424526,1755755455254,-480.0,0.00022465,3]
[380424527,1755755455264,-480.0,0.00022465,3]
[380424528,1755755455273,-2621.27,0.00022465,3]
[380424529,1755755455284,-480.0,0.00022465,3]
[380424530,1755755455294,-5114.37,0.00022465,3]
[380424531,1755755455303,-2621.23,0.00022465,3]
[380424532,1755755455312,-481.80274514,0.00022465,3]
[380424533,1755755455322,-480.0,0.00022465,2]
[380424534,1755755455331,-152.342264,0.00022465,7]
[380424535,1755755455341,-509.8,0.00022465,3]
[380424536,1755755455350,-480.0,0.00022465,3]
[380424537,1755755455359,-489.79,0.00022465,3]
[380424538,1755755455368,-247.0,0.00022507,2]
[380424539,1755755455378,-500.0,0.00022521,2]
[380424540,1755755455387,-698.08123383,0.00022521,2]
[380424541,1755755455396,-502.168751,0.00022521,2]
[380424542,1755755455405,-502.70577595,0.00022521,2]
[380424543,1755755455414,-501.4937368,0.00022521,2]
[380424544,1755755455424,-1008.5544865,0.00022521,2]
[380424545,1755755455434,-1001.23849766,0.00022521,2]
[380424546,1755755455443,-504.31604857,0.00022521,2]
[380424547,1755755455453,-1000.0,0.00022521,2]
[380424548,1755755455462,-218.0004553,0.00022521,2]
[380424549,1755755455471,-502.05150272,0.00022521,2]
[380424550,1755755455481,-501.37671794,0.00022521,2]
[380424551,1755755455490,-1000.0,0.00022521,2]
[380424552,1755755455500,-503.45926165,0.00022521,2]
[380424553,1755755455511,-325.39270182,0.00022521,2]
[380424554,1755755455521,-502.62261906,0.00022521,2]
[380424555,1755755455531,-464.7111914,0.00022521,2]
[380424556,1755755455540,-1000.0,0.00022521,2]
[380424557,1755755455550,-247.0,0.0002262,2]
[380424558,1755755455560,-1460.22635151,0.00022639,2]
[380424559,1755755455570,-391.82828244,0.00022639,2]
[380424560,1755755455579,-578.02,0.00022643,2]
[380424561,1755755455589,-1500.0,0.00022668,2]
[380424562,1755755455598,-150.0,0.000227,2]
[380424563,1755755455607,-151.0,0.000227,10]
[380424564,1755755455616,-414.19646407,0.00022706,2]
[380424565,1755755455626,-247.0,0.00022706,2]
[380424566,1755755455635,-300.7924297,0.00022721,2]
[380424567,1755755455644,-1004.2643275,0.00022721,2]
[380424568,1755755455653,-500.0,0.00022721,2]
[380424569,1755755455663,-250.72281675,0.00022721,2]
[380424570,1755755455672,-733.8497264,0.00022739,2]
[380424571,1755755455681,-656.47,0.00022739,3]
[380424572,1755755455691,-480.0,0.00022739,3]
[380424573,1755755455700,-480.0,0.00022739,3]
[380424574,1755755455710,-480.0,0.00022739,3]
[380424575,1755755455719,-480.0,0.00022739,3]
[380424576,1755755455728,-480.0,0.00022739,3]
[380424577,1755755455743,-480.0,0.00022739,3]
[380424578,1755755455752,-480.0,0.00022739,3]
[380424579,1755755455763,-402.91978874,0.00022739,3]
[380424580,1755755455772,-480.0,0.00022739,3]
[380424581,1755755455781,-480.0,0.00022739,3]
[380424582,1755755455790,-480.0,0.00022739,3]
[380424583,1755755455800,-480.0,0.00022739,3]
[380424584,1755755455809,-480.0,0.00022739,3]
[380424585,1755755455818,-480.0,0.00022739,3]
[380424586,1755755455828,-480.0,0.00022739,3]
[380424587,1755755455838,-480.0,0.00022739,3]
[380424588,1755755455847,-480.0,0.00022739,3]
[380424589,1755755455857,-990.52,0.00022739,3]
[380424590,1755755455866,-530.51,0.00022739,3]
[380424591,1755755455875,-480.0,0.00022739,3]
[380424592,1755755455885,-396.51103964,0.00022739,3]
[380424593,1755755455894,-508.22606191,0.00022739,3]
[380424594,1755755455903,-480.0,0.00022739,3]
[380424595,1755755455913,-480.0,0.00022739,3]
[380424596,1755755455922,-480.0,0.00022739,3]
[380424597,1755755455931,-480.0,0.00022739,3]
[380424598,1755755455941,-486.16,0.00022739,3]
[380424599,1755755455949,-1144.66,0.00022739,3]
[380424600,1755755455959,-791.07,0.00022739,3]
[380424601,1755755455968,-808.14,0.00022739,3]
[380424602,1755755455977,-480.0,0.00022739,3]
[380424603,1755755455986,-480.0,0.00022739,3]
[380424604,1755755455995,-480.0,0.00022739,3]
[380424605,1755755456005,-480.0,0.00022739,2]
[380424606,1755755456015,-480.0,0.00022739,3]
[380424607,1755755456024,-537.91,0.00022739,3]
[380424608,1755755456034,-480.0,0.00022739,3]
[380424609,1755755456044,-480.0,0.00022739,3]
[380424610,1755755456053,-480.0,0.00022739,3]
[380424611,1755755456063,-618.29,0.00022739,3]
[380424612,1755755456072,-468.76327929,0.00022739,3]
[380424613,1755755456081,-480.0,0.00022739,3]
[380424614,1755755456091,-480.0,0.00022739,3]
[380424615,1755755456101,-480.0,0.00022739,3]
[380424616,1755755456111,-480.0,0.00022739,3]
[380424617,1755755456120,-480.0,0.00022739,3]
[380424618,1755755456129,-480.0,0.00022739,3]
[380424619,1755755456138,-480.0,0.00022739,3]
[380424620,1755755456148,-870.35,0.00022739,3]
[380424621,1755755456158,-809.15,0.00022739,3]
[380424622,1755755456167,-480.0,0.00022739,3]
[380424623,1755755456177,-480.0,0.00022739,3]
[380424624,1755755456186,-480.0,0.00022739,3]
[380424625,1755755456195,-570.20122734,0.00022739,3]
[380424626,1755755456205,-480.0,0.00022739,3]
[380424627,1755755456214,-480.0,0.00022739,3]
[380424628,1755755456224,-480.0,0.00022739,3]
[380424629,1755755456234,-722.49,0.00022739,3]
[380424630,1755755456244,-480.0,0.00022739,3]
[380424631,1755755456253,-480.0,0.00022739,3]
[380424632,1755755456263,-480.0,0.00022739,3]
[380424633,1755755456272,-480.0,0.00022739,3]
[380424634,1755755456282,-1204.42,0.00022739,3]
[380424635,1755755456291,-480.0,0.00022739,3]
[380424636,1755755456300,-480.0,0.00022739,3]
[380424637,1755755456310,-480.0,0.00022739,3]
[380424638,1755755456319,-480.0,0.00022739,3]
[380424639,1755755456328,-480.0,0.00022739,3]
[380424640,1755755456337,-480.0,0.00022739,3]
[380424641,1755755456347,-480.0,0.00022739,3]
[380424642,1755755456356,-1034.01,0.00022739,3]
[380424643,1755755456366,-480.0,0.00022739,3]
[380424644,1755755456376,-480.0,0.00022739,3]
[380424645,1755755456385,-1008.04,0.00022739,3]
[380424646,1755755456394,-480.0,0.00022739,3]
[380424647,1755755456403,-480.0,0.00022739,3]
[380424648,1755755456412,-465.52020377,0.00022739,3]
[380424649,1755755456421,-513.0767204,0.00022739,3]
[380424650,1755755456430,-480.0,0.00022739,3]
[380424651,1755755456439,-480.0,0.00022739,3]
[380424652,1755755456448,-521.06,0.00022739,3]
[380424653,1755755456458,-480.0,0.00022739,3]
[380424654,1755755456467,-480.0,0.00022739,3]
[380424655,1755755456477,-877.6,0.00022739,3]
[380424656,1755755456487,-591.04,0.00022739,3]
[380424657,1755755456497,-2058.86,0.00022739,3]
[380424658,1755755456508,-480.0,0.00022739,3]
[380424659,1755755456517,-968.17,0.00022739,3]
[380424660,1755755456527,-480.0,0.00022739,3]
[380424661,1755755456536,-767.23,0.00022739,3]
[380424662,1755755456546,-480.0,0.00022739,3]
[380424663,1755755456555,-679.28,0.00022739,3]
[380424664,1755755456566,-480.0,0.00022739,3]
[380424665,1755755456578,-480.0,0.00022739,3]
[380424666,1755755456587,-2077.9,0.00022739,3]
[380424667,1755755456597,-405.59561462,0.00022739,3]
[380424668,1755755456606,-480.0,0.00022739,3]
[380424669,1755755456616,-480.0,0.00022739,3]
[380424670,1755755456625,-480.0,0.00022739,3]
[380424671,1755755456635,-815.42,0.00022739,3]
[380424672,1755755456644,-590.15,0.00022739,3]
[380424673,1755755456654,-410.06434166,0.00022739,3]
[380424674,1755755456663,-540.5,0.00022739,3]
[380424675,1755755456672,-182.95136853,0.00022739,3]
[380424676,1755755456682,-738.43,0.00022739,3]
[380424677,1755755456691,-480.0,0.00022739,3]
[380424678,1755755456700,-480.0,0.00022739,3]
[380424679,1755755456710,-500.0,0.00022739,3]
[380424680,1755755456719,-480.0,0.00022739,3]
[380424681,1755755456728,-480.0,0.00022739,3]
[380424682,1755755456742,-480.0,0.00022739,3]
[380424683,1755755456751,-480.0,0.00022739,3]
[380424684,1755755456761,-480.0,0.00022739,3]
[380424685,1755755456771,-508.13969848,0.00022739,3]
[380424686,1755755456782,-653.6,0.00022739,3]
[380424687,1755755456791,-653.26,0.00022739,3]
[380424688,1755755456801,-480.0,0.00022739,3]
[380424689,1755755456811,-480.0,0.00022739,3]
[380424690,1755755456821,-288.54867799,0.00022739,3]
[380424691,1755755456831,-532.53,0.00022739,3]
[380424692,1755755456840,-480.0,0.00022739,3]
[380424693,1755755456850,-480.0,0.00022739,3]
[380424694,1755755456860,-827.18,0.00022739,3]
[380424695,1755755456869,-480.0,0.00022739,3]
[380424696,1755755456878,-480.0,0.00022739,3]
[380424697,1755755456887,-480.0,0.00022739,3]
[380424698,1755755456897,-480.0,0.00022739,3]
[380424699,1755755456906,-480.0,0.00022739,3]
[380424700,1755755456915,-480.0,0.00022739,3]
[380424701,1755755456925,-679.09,0.00022739,3]
[380424702,1755755456934,-1257.55,0.00022739,3]
[380424703,1755755456944,-480.0,0.00022739,3]
[380424704,1755755456953,-480.0,0.00022739,3]
[380424705,1755755456962,-680.02,0.00022739,3]
[380424706,1755755456972,-779.54,0.00022739,3]
[380424707,1755755456982,-480.0,0.00022739,3]
[380424708,1755755456992,-480.0,0.00022739,3]
[380424709,1755755457002,-480.0,0.00022739,3]
[380424710,1755755457012,-492.82313263,0.00022739,3]
[380424711,1755755457021,-480.0,0.00022739,3]
[380424712,1755755457031,-602.09,0.00022739,3]
[380424713,1755755457041,-423.87571148,0.00022739,3]
[380424714,1755755457050,-529.32,0.00022739,3]
[380424715,1755755457060,-892.06,0.00022739,3]
[380424716,1755755457070,-480.0,0.00022739,3]
[380424717,1755755457079,-480.0,0.00022739,3]
[380424718,1755755457089,-480.0,0.00022739,3]
[380424719,1755755457098,-480.0,0.00022739,3]
[380424720,1755755457107,-480.0,0.00022739,3]
[380424721,1755755457116,-608.17,0.00022739,3]
[380424722,1755755457125,-981.81,0.00022739,3]
[380424723,1755755457135,-480.0,0.00022739,3]
[380424724,1755755457144,-480.0,0.00022739,3]
[380424725,1755755457153,-480.0,0.00022739,3]
[380424726,1755755457162,-500.0,0.00022739,2]
[380424727,1755755457171,-480.0,0.00022739,3]
[380424728,1755755457180,-480.0,0.00022739,3]
[380424729,1755755457190,-544.73,0.00022739,3]
[380424730,1755755457199,-651.55,0.00022739,3]
[380424731,1755755457208,-151.0,0.00022739,2]
[380424732,1755755457217,-480.0,0.00022739,3]
[380424733,1755755457227,-575.4,0.00022739,3]
[380424734,1755755457236,-2742.92,0.00022739,3]
[380424735,1755755457246,-480.0,0.00022739,3]
[380424736,1755755457255,-480.0,0.00022739,3]
[380424737,1755755457265,-480.0,0.00022739,3]
[380424738,1755755457275,-480.0,0.00022739,3]
[380424739,1755755457284,-480.0,0.00022739,3]
[380424740,1755755457293,-480.0,0.00022739,3]
[380424741,1755755457304,-965.52,0.00022739,3]
[380424742,1755755457314,-4305.82,0.00022739,3]
[380424743,1755755457324,-847.6,0.00022739,3]
[380424744,1755755457334,-480.0,0.00022739,3]
[380424745,1755755457343,-480.0,0.00022739,3]
[380424746,1755755457352,-480.0,0.00022739,3]
[380424747,1755755457362,-480.0,0.00022739,3]
[380424748,1755755457371,-289.71956273,0.00022739,3]
[380424749,1755755457381,-480.0,0.00022739,3]
[380424750,1755755457390,-480.0,0.00022739,3]
[380424751,1755755457400,-480.0,0.00022739,3]
[380424752,1755755457409,-480.0,0.00022739,3]
[380424753,1755755457418,-480.0,0.00022739,3]
[380424754,1755755457427,-480.0,0.00022739,3]
[380424755,1755755457437,-598.38,0.00022739,3]
[380424756,1755755457446,-220.7164089,0.00022739,3]
[380424757,1755755457455,-707.8,0.00022739,3]
[380424758,1755755457464,-480.0,0.00022739,3]
[380424759,1755755457474,-391.27445303,0.00022739,3]
[380424760,1755755457483,-599.89,0.00022739,3]
[380424761,1755755457493,-500.0,0.00022739,2]
[380424762,1755755457503,-3178.45,0.00022739,3]
[380424763,1755755457512,-151.0,0.00022739,2]
[380424764,1755755457522,-480.0,0.00022739,3]
[380424765,1755755457531,-480.0,0.00022739,3]
[380424766,1755755457541,-200.85761261,0.00022739,2]
[380424767,1755755457551,-1464.31,0.00022739,3]
[380424768,1755755457560,-480.0,0.00022739,3]
[380424769,1755755457569,-480.0,0.00022739,3]
[380424770,1755755457579,-480.0,0.00022739,3]
[380424771,1755755457588,-1077.94,0.00022739,3]
[380424772,1755755457597,-1223.6,0.00022739,3]
[380424773,1755755457607,-480.0,0.00022739,3]
[380424774,1755755457616,-5090.19,0.00022739,3]
[380424775,1755755457625,-480.0,0.00022739,3]
[380424776,1755755457635,-173.57582821,0.00022739,3]
[380424777,1755755457645,-480.0,0.00022739,3]
[380424778,1755755457654,-480.0,0.00022739,3]
[380424779,1755755457663,-1636.43,0.00022739,3]
[380424780,1755755457672,-1651.35,0.00022739,3]
[380424781,1755755457681,-178.56901425,0.00022739,2]
[380424782,1755755457691,-1600.71,0.00022739,3]
[380424783,1755755457700,-151.0,0.00022739,7]
[380424784,1755755457709,-858.34,0.00022739,3]
[380424785,1755755457719,-666.5,0.00022739,3]
[380424786,1755755457728,-151.0,0.00022739,7]
[380424787,1755755457743,-480.0,0.00022739,3]
[380424788,1755755457752,-5436.13,0.00022739,3]
[380424789,1755755457762,-987.13,0.00022739,3]
[380424790,1755755457771,-480.0,0.00022739,3]
[380424791,1755755457782,-480.0,0.00022739,3]
[380424792,1755755457791,-480.0,0.00022739,3]
[380424793,1755755457961,-480.0,0.00022739,3]
[380424794,1755755457971,-480.0,0.00022739,3]
[380424795,1755755457980,-556.17,0.00022739,3]
[380424796,1755755457989,-1298.25,0.00022739,3]
[380424797,1755755457999,-480.0,0.00022739,3]
[380424798,1755755458011,-480.0,0.00022739,3]
[380424799,1755755458021,-4081.23,0.00022739,3]
[380424800,1755755458031,-661.03,0.00022739,3]
[380424801,1755755458040,-4649.69,0.00022739,3]
[380424802,1755755458050,-764.39,0.00022739,3]
[380424803,1755755458060,-646.25,0.00022739,3]
[380424804,1755755458069,-1607.72,0.00022739,3]
[380424805,1755755458078,-480.0,0.00022739,3]
[380424806,1755755458088,-587.15,0.00022739,3]
[380424807,1755755458097,-1033.88,0.00022739,3]
[380424808,1755755458107,-344.08021772,0.00022739,3]
[380424809,1755755458116,-692.81,0.00022739,3]
[380424810,1755755458125,-1892.16,0.00022739,3]
[380424811,1755755458134,-571.49,0.00022739,3]
[380424812,1755755458143,-480.0,0.00022739,3]
[380424813,1755755458153,-480.0,0.00022739,2]
[380424814,1755755458162,-704.68,0.00022739,3]
[380424815,1755755458171,-580.06,0.00022739,3]
[380424816,1755755458180,-2026.45,0.00022739,3]
[380424817,1755755458190,-638.71,0.00022739,3]
[380424818,1755755458199,-1548.41,0.00022739,3]
[380424819,1755755458209,-876.69,0.00022739,3]
[380424820,1755755458218,-913.08,0.00022739,3]
[380424821,1755755458227,-2836.41,0.00022739,3]
[380424822,1755755458240,-480.18,0.00022739,3]
[380424823,1755755458250,-480.0,0.00022739,3]
[380424824,1755755458259,-480.0,0.00022739,3]
[380424825,1755755458269,-1260.5,0.00022739,3]
[380424826,1755755458278,-480.0,0.00022739,3]
[380424827,1755755458288,-480.0,0.00022739,3]
[380424828,1755755458298,-6867.1,0.00022739,3]
[380424829,1755755458307,-480.0,0.00022739,3]
[380424830,1755755458317,-480.0,0.00022739,3]
[380424831,1755755458327,-480.0,0.00022739,3]
[380424832,1755755458336,-151.0,0.00022739,7]
[380424833,1755755458345,-897.34,0.00022739,3]
[380424834,1755755458355,-2112.97,0.00022739,3]
[380424835,1755755458364,-151.0,0.00022739,7]
[380424836,1755755458373,-480.0,0.00022739,3]
[380424837,1755755458383,-1849.27,0.00022739,3]
[380424838,1755755458392,-480.0,0.00022739,3]
[380424839,1755755458401,-151.0,0.00022739,7]
[380424840,1755755458411,-480.0,0.00022739,3]
[380424841,1755755458420,-215.86710461,0.00022739,7]
[380424842,1755755458429,-480.0,0.00022739,3]
[380424843,1755755458439,-967.56,0.00022739,3]
[380424844,1755755458448,-3113.67,0.00022739,3]
[380424845,1755755458457,-480.0,0.00022739,3]
[380424846,1755755458467,-480.0,0.00022739,3]
[380424847,1755755458476,-959.71,0.00022739,3]
[380424848,1755755458485,-480.0,0.00022739,3]
[380424849,1755755458494,-480.0,0.00022739,3]
[380424850,1755755458504,-521.76,0.00022739,3]
[380424851,1755755458513,-1373.53,0.00022739,3]
[380424852,1755755458523,-480.0,0.00022739,3]
[380424853,1755755458532,-747.07,0.00022739,3]
[380424854,1755755458541,-2085.04,0.00022739,3]
[380424855,1755755458551,-480.0,0.00022739,3]
[380424856,1755755458560,-1394.07,0.00022739,3]
[380424857,1755755458569,-480.0,0.00022739,3]
[380424858,1755755458579,-480.0,0.00022739,3]
[380424859,1755755458588,-2621.27,0.00022739,3]
[380424860,1755755458599,-480.0,0.00022739,3]
[380424861,1755755458608,-5114.37,0.00022739,3]
[380424862,1755755458618,-2621.23,0.00022739,3]
[380424863,1755755458627,-480.0,0.00022739,2]
[380424864,1755755458636,-509.8,0.00022739,3]
[380424865,1755755458646,-480.0,0.00022739,3]
[380424866,1755755458655,-247.0,0.00022749,2]
[380424867,1755755458664,-247.0,0.00022782,2]
[380424868,1755755458673,-1797.0,0.00022799,2]
[380424869,1755755458683,-247.0,0.00022817,2]
[380424870,1755755458692,-247.0,0.00022818,2]
[380424871,1755755458702,-247.0,0.00022844,2]
[380424872,1755755458712,-151.0,0.000229,5]
[380424873,1755755458722,-151.0,0.00022937,2]
[380424874,1755755458731,-19897.22545671,0.00022937,2]
[380424875,1755755458743,-917.76,0.00022941,3]
[380424876,1755755458753,-458.88,0.00022941,3]
[380424877,1755755458762,-326.0,0.00022982,3]
[380424878,1755755458771,-326.0,0.00022982,3]
[380424879,1755755458782,-160.0,0.00023,3]
[380424880,1755755458791,-160.0,0.00023,3]
[380424881,1755755458800,-160.0,0.00023,3]
[380424882,1755755458811,-23765.21941987,0.00023,2]
[380424883,1755755458822,-232.28399145,0.00023,3]
[380424884,1755755458832,-160.0,0.00023,3]
[380424885,1755755458842,-216.95272161,0.00023,3]
[380424886,1755755458852,-160.0,0.00023,2]
[380424887,1755755458862,-356.73797255,0.00023012,2]
[380424888,1755755458871,-500.0,0.00023013,2]
[380424889,1755755458881,-159.17783366,0.00023013,2]
[380424890,1755755458890,-505.40021067,0.00023013,2]
[380424891,1755755458899,-2336.59,0.00023013,3]
[380424892,1755755458909,-656.47,0.00023013,3]
[380424893,1755755458918,-480.0,0.00023013,3]
[380424894,1755755458928,-480.0,0.00023013,3]
[380424895,1755755458937,-372.76087302,0.00023013,3]
[380424896,1755755458947,-480.0,0.00023013,3]
[380424897,1755755458956,-480.0,0.00023013,3]
[380424898,1755755458965,-480.0,0.00023013,3]
[380424899,1755755458974,-480.0,0.00023013,3]
[380424900,1755755458983,-480.0,0.00023013,3]
[380424901,1755755458992,-482.37121661,0.00023013,3]
[380424902,1755755459002,-480.0,0.00023013,3]
[380424903,1755755459012,-480.0,0.00023013,3]
[380424904,1755755459021,-480.0,0.00023013,3]
[380424905,1755755459030,-556.90287807,0.00023013,3]
[380424906,1755755459040,-480.0,0.00023013,3]
[380424907,1755755459049,-480.0,0.00023013,3]
[380424908,1755755459058,-480.0,0.00023013,3]
[380424909,1755755459067,-990.52,0.00023013,3]
[380424910,1755755459077,-530.51,0.00023013,3]
[380424911,1755755459086,-480.0,0.00023013,3]
[380424912,1755755459095,-480.0,0.00023013,3]
[380424913,1755755459106,-480.0,0.00023013,3]
[380424914,1755755459115,-480.0,0.00023013,3]
[380424915,1755755459125,-480.0,0.00023013,3]
[380424916,1755755459134,-486.16,0.00023013,3]
[380424917,1755755459143,-1144.66,0.00023013,3]
[380424918,1755755459153,-791.07,0.00023013,3]
[380424919,1755755459163,-808.14,0.00023013,3]
[380424920,1755755459172,-480.0,0.00023013,3]
[380424921,1755755459181,-480.0,0.00023013,3]
[380424922,1755755459190,-480.0,0.00023013,3]
[380424923,1755755459199,-480.0,0.00023013,2]
[380424924,1755755459209,-225.85015093,0.00023013,3]
[380424925,1755755459218,-537.91,0.00023013,3]
[380424926,1755755459227,-480.0,0.00023013,3]
[380424927,1755755459237,-480.0,0.00023013,3]
[380424928,1755755459247,-386.20429372,0.00023013,3]
[380424929,1755755459257,-618.29,0.00023013,3]
[380424930,1755755459266,-480.0,0.00023013,3]
[380424931,1755755459276,-480.0,0.00023013,3]
[380424932,1755755459286,-480.0,0.00023013,3]
[380424933,1755755459295,-480.0,0.00023013,3]
[380424934,1755755459305,-480.0,0.00023013,3]
[380424935,1755755459315,-480.0,0.00023013,3]